fUSD/lending_fUSD_20250906
["ID","MTS","AMOUNT","RATE_DAILY","PERIOD"]
[383895610,1757164251383,-151.0,0.00045,120]
[383895611,1757164251393,-151.0,0.00045,120]
[383895612,1757164251403,-151.0,0.00045,120]
[383895613,1757164251412,-151.0,0.00045,120]
[383895614,1757164251423,-151.0,0.00045,120]
[383895615,1757164251432,-293.935401,0.00045,120]
[383895616,1757164251442,-151.0,0.00045,120]
[383895617,1757164251451,-151.0,0.00045,120]
[383895618,1757164251460,-151.0,0.00045,120]
[383895619,1757164251470,-151.0,0.00045,120]
[383895620,1757164251479,-151.0,0.00045,120]
[383895621,1757164251489,-151.0,0.00045,120]
[383895622,1757164251498,-151.0,0.00045,120]
[383895623,1757164251509,-151.0,0.00045,120]
[383895624,1757164251518,-151.0,0.00045,120]
[383895625,1757164251527,-151.0,0.00045,120]
[383895626,1757164251537,-284.3946,0.00045,120]
[383895627,1757164251546,-192.26024,0.00045,120]
[383895628,1757164251555,-192.26024,0.00045,120]
[383895629,1757164251565,-192.26024,0.00045,120]
[383895630,1757164251575,-192.260231,0.00045,120]
[383895631,1757164251584,-188.12913558,0.00045,120]
[383895632,1757164251594,-351.0,0.00045061,120]
[383895633,1757164251604,-4042.01087159,0.00045094,15]
[383895634,1757164251615,-151.0,0.00045098,120]
[383895635,1757164251625,-151.0,0.00045098,120]
[383895636,1757164251635,-151.0,0.00045098,120]
[383895637,1757164251644,-151.0,0.00045098,120]
[383895638,1757164251654,-151.0,0.00045098,120]
[383895639,1757164251663,-151.0,0.00045098,120]
[383895640,1757164251673,-151.0,0.00045098,120]
[383895641,1757164251683,-999.99,0.00045125,2]
[383895642,1757164251692,-150.99,0.00045125,2]
[383895643,1757164251701,-5459.7,0.00045125,2]
[383895644,1757164251711,-3273.73217034,0.00045133,120]
[383895645,1757164251720,-710.71,0.00045142,2]
[383895646,1757164251730,-179.0,0.00045155,2]
[383895647,1757164251740,-524.333779,0.00045182,120]
[383895648,1757164251749,-150.0,0.00045205,2]
[383895649,1757164251758,-200.0,0.00045205,2]
[383895650,1757164251768,-555.32,0.00045205,2]
[383895651,1757164251777,-150.0,0.00045205,2]
[383895652,1757164251787,-200.0,0.00045205,2]
[383895653,1757164251796,-200.0,0.00045205,2]
[383895654,1757164251806,-500.0,0.00045205,2]
[383895655,1757164251815,-500.0,0.00045205,2]
[383895656,1757164251824,-150.0,0.00045205,2]
[383895657,1757164251834,-200.0,0.00045205,2]
[383895658,1757164251843,-250.0,0.00045205,2]
[383895659,1757164251852,-500.0,0.00045205,2]
[383895660,1757164251862,-150.0,0.00045205,2]
[383895661,1757164251871,-500.0,0.00045205,2]
[383895662,1757164251880,-150.0,0.00045205,2]
[383895663,1757164251889,-150.0,0.00045205,120]
[383895664,1757164251900,-500.0,0.00045206,2]
[383895665,1757164251910,-500.0,0.00045206,2]
[383895666,1757164251919,-200.0,0.00045206,2]
[383895667,1757164251928,-200.0,0.00045206,2]
[383895668,1757164251937,-150.0,0.00045206,2]
[383895669,1757164251947,-164.53,0.00045243,14]
[383895670,1757164251956,-179.0,0.00045306,2]
[383895671,1757164251966,-445.71367741,0.00045391,46]
[383895672,1757164251978,-179.0,0.0004544,7]
[383895673,1757164251988,-250.0,0.00045479,2]
[383895674,1757164251997,-200.0,0.00045479,2]
[383895675,1757164252007,-500.0,0.00045479,2]
[383895676,1757164252018,-500.0,0.00045479,2]
[383895677,1757164252027,-150.0,0.00045479,2]
[383895678,1757164252223,-500.0,0.00045479,2]
[383895679,1757164252233,-250.0,0.00045479,2]
[383895680,1757164252242,-500.0,0.00045479,2]
[383895681,1757164252252,-300.02,0.00045479,120]
[383895682,1757164252261,-500.0,0.0004548,2]
[383895683,1757164252271,-412.21268916,0.0004548,2]
[383895684,1757164252280,-150.0,0.0004548,2]
[383895685,1757164252291,-378.0,0.00045514,2]
[383895686,1757164252301,-179.0,0.00045516,2]
[383895687,1757164252311,-423.0499156,0.00045521,10]
[383895688,1757164252321,-1000.0,0.00045521,10]
[383895689,1757164252331,-1000.0,0.00045521,10]
[383895690,1757164252340,-179.0,0.00045564,2]
[383895691,1757164252350,-6165.0,0.00045574,2]
[383895692,1757164252360,-21158.0,0.00045574,2]
[383895693,1757164252371,-725.0,0.00045574,2]
[383895694,1757164252381,-4164.0,0.00045574,2]
[383895695,1757164252390,-30000.0,0.00045615,30]
[383895696,1757164252400,-151.0,0.00045615,120]
[383895697,1757164252409,-151.0,0.00045615,120]
[383895698,1757164252419,-151.0,0.00045615,120]
[383895699,1757164252429,-151.0,0.00045615,120]
[383895700,1757164252438,-151.0,0.00045615,120]
[383895701,1757164252447,-151.0,0.00045615,120]
[383895702,1757164252457,-151.0,0.00045615,120]
[383895703,1757164252467,-151.0,0.00045615,120]
[383895704,1757164252475,-151.0,0.00045615,120]
[383895705,1757164252484,-151.0,0.00045615,120]
[383895706,1757164252495,-164.819581,0.00045615,120]
[383895707,1757164252504,-164.819581,0.00045615,120]
[383895708,1757164252516,-164.819581,0.00045615,120]
[383895709,1757164252526,-164.819573,0.00045615,120]
[383895710,1757164252536,-151.0,0.00045615,120]
[383895711,1757164252545,-151.0,0.00045615,120]
[383895712,1757164252555,-151.0,0.00045615,120]
[383895713,1757164252564,-151.0,0.00045615,120]
[383895714,1757164252574,-151.0,0.00045615,120]
[383895715,1757164252583,-250.0,0.00045615,120]
[383895716,1757164252592,-250.0,0.00045615,120]
[383895717,1757164252601,-178.52795,0.00045615,120]
[383895718,1757164252610,-250.0,0.00045615,120]
[383895719,1757164252620,-151.0,0.00045615,120]
[383895720,1757164252630,-178.52795,0.00045615,120]
[383895721,1757164252639,-250.0,0.00045615,120]
[383895722,1757164252649,-178.52795,0.00045615,120]
[383895723,1757164252659,-151.0,0.00045615,120]
[383895724,1757164252669,-178.52795,0.00045615,120]
[383895725,1757164252679,-276.575732,0.00045615,120]
[383895726,1757164252689,-151.0,0.00045615,120]
[383895727,1757164252699,-159.536288,0.00045673,10]
[383895728,1757164252709,-500.0,0.00045673,10]
[383895729,1757164252720,-238.47935197,0.00045677,20]
[383895730,1757164252731,-306.97323968,0.000457,2]
[383895731,1757164252741,-179.0,0.00045714,7]
[383895732,1757164252750,-200.0,0.00045717,2]
[383895733,1757164252759,-378.0,0.00045748,120]
[383895734,1757164252769,-152.0,0.0004575,14]
[383895735,1757164252778,-152.0,0.0004575,14]
[383895736,1757164252788,-152.0,0.0004575,14]
[383895737,1757164252797,-1224.0,0.0004575,14]
[383895738,1757164252810,-152.0,0.0004575,14]
[383895739,1757164252820,-157.7458438,0.0004575,14]
[383895740,1757164252830,-152.0,0.0004575,14]
[383895741,1757164252839,-1224.0,0.0004575,14]
[383895742,1757164252851,-189.18567382,0.0004575,14]
[383895743,1757164252860,-152.0,0.0004575,14]
[383895744,1757164252871,-1224.0,0.0004575,14]
[383895745,1757164252880,-152.0,0.0004575,14]
[383895746,1757164252890,-1224.0,0.0004575,14]
[383895747,1757164252899,-546.0,0.0004575,14]
[383895748,1757164252908,-152.0,0.0004575,14]
[383895749,1757164252918,-1224.0,0.0004575,14]
[383895750,1757164252927,-546.0,0.0004575,14]
[383895751,1757164252937,-152.0,0.0004575,14]
[383895752,1757164252946,-546.0,0.0004575,14]
[383895753,1757164252956,-1224.0,0.0004575,14]
[383895754,1757164252966,-546.0,0.0004575,14]
[383895755,1757164252975,-152.0,0.0004575,14]
[383895756,1757164252985,-1224.0,0.0004575,14]
[383895757,1757164252995,-546.0,0.0004575,14]
[383895758,1757164253004,-152.0,0.0004575,14]
[383895759,1757164253013,-294.84570016,0.0004575,14]
[383895760,1757164253023,-152.0,0.0004575,14]
[383895761,1757164253032,-152.0,0.0004575,14]
[383895762,1757164253042,-152.0,0.0004575,14]
[383895763,1757164253051,-152.0,0.0004575,14]
[383895764,1757164253062,-152.0,0.0004575,14]
[383895765,1757164253071,-152.0,0.0004575,14]
[383895766,1757164253081,-546.0,0.0004575,14]
[383895767,1757164253090,-546.0,0.0004575,14]
[383895768,1757164253100,-152.0,0.0004575,14]
[383895769,1757164253109,-152.0,0.0004575,14]
[383895770,1757164253118,-154.0,0.0004575,14]
[383895771,1757164253128,-154.0,0.0004575,14]
[383895772,1757164253140,-152.0,0.0004575,14]
[383895773,1757164253149,-152.0,0.0004575,14]
[383895774,1757164253159,-546.0,0.0004575,14]
[383895775,1757164253168,-221.55553866,0.0004575,14]
[383895776,1757164253178,-546.0,0.0004575,14]
[383895777,1757164253189,-154.0,0.0004575,14]
[383895778,1757164253198,-546.0,0.0004575,14]
[383895779,1757164253207,-546.0,0.0004575,14]
[383895780,1757164253217,-546.0,0.0004575,14]
[383895781,1757164253227,-154.0,0.0004575,14]
[383895782,1757164253236,-154.0,0.0004575,14]
[383895783,1757164253246,-154.0,0.0004575,14]
[383895784,1757164253255,-154.0,0.0004575,14]
[383895785,1757164253265,-206.58494233,0.0004575,14]
[383895786,1757164253274,-152.0,0.0004575,14]
[383895787,1757164253284,-152.0,0.0004575,14]
[383895788,1757164253294,-152.0,0.0004575,14]
[383895789,1757164253303,-258.46724408,0.0004575,14]
[383895790,1757164253312,-500.0,0.00045753,2]
[383895791,1757164253322,-500.0,0.00045753,2]
[383895792,1757164253331,-150.0,0.00045753,2]
[383895793,1757164253343,-500.0,0.00045753,2]
[383895794,1757164253353,-500.0,0.00045753,2]
[383895795,1757164253362,-343.56535766,0.00045754,2]
[383895796,1757164253372,-150.0,0.00045754,2]
[383895797,1757164253382,-470.72,0.0004589,30]
[383895798,1757164253392,-470.72,0.0004589,30]
[383895799,1757164253402,-470.72,0.0004589,30]
[383895800,1757164253412,-470.72,0.0004589,30]
[383895801,1757164253422,-470.72,0.0004589,30]
[383895802,1757164253433,-466.8,0.0004589,30]
[383895803,1757164253443,-2414.69886968,0.0004599,120]
[383895804,1757164253452,-6398.74090566,0.00046,120]
[383895805,1757164253461,-1267.23265744,0.00046,120]
[383895806,1757164253471,-248.93759587,0.00046,120]
[383895807,1757164253480,-500.0,0.00046027,2]
[383895808,1757164253490,-500.0,0.00046027,2]
[383895809,1757164253500,-150.0,0.00046027,2]
[383895810,1757164253510,-336.35095828,0.00046027,2]
[383895811,1757164253520,-500.0,0.00046027,2]
[383895812,1757164253530,-300.0,0.00046027,30]
[383895813,1757164253541,-196.89785109,0.00046028,2]
[383895814,1757164253550,-4042.01087159,0.00046059,15]
[383895815,1757164253563,-860.46113423,0.00046068,10]
[383895816,1757164253572,-1000.50996522,0.00046068,10]
[383895817,1757164253583,-1079.57,0.000461,14]
[383895818,1757164253592,-179.0,0.00046186,120]
[383895819,1757164253601,-4121.01,0.000462,14]
[383895820,1757164253611,-1821.33,0.000462,30]
[383895821,1757164253619,-260.94,0.000462,30]
[383895822,1757164253629,-185.00211874,0.00046221,10]
[383895823,1757164253639,-334.84,0.00046264,120]
[383895824,1757164253648,-3054.0,0.00046281,120]
[383895825,1757164253658,-500.0,0.00046301,2]
[383895826,1757164253667,-249.53111718,0.00046301,2]
[383895827,1757164253677,-500.0,0.00046301,2]
[383895828,1757164253686,-5000.0,0.0004649,120]
[383895829,1757164253696,-306.97323968,0.000465,2]
[383895830,1757164253705,-179.0,0.0004651,7]
[383895831,1757164253715,-238.47935197,0.00046521,24]
[383895832,1757164253725,-159.552256,0.00046573,2]
[383895833,1757164253735,-500.0,0.00046573,10]
[383895834,1757164253745,-500.65948988,0.00046573,10]
[383895835,1757164253755,-500.0,0.00046573,10]
[383895836,1757164253764,-502.00945372,0.00046573,10]
[383895837,1757164253774,-500.0,0.00046573,10]
[383895838,1757164253785,-500.0,0.00046573,10]
[383895839,1757164253795,-500.0,0.00046573,10]
[383895840,1757164253804,-500.0,0.00046573,10]
[383895841,1757164253814,-501.07994918,0.00046573,10]
[383895842,1757164253823,-500.73048129,0.00046573,10]
[383895843,1757164253833,-500.0,0.00046573,10]
[383895844,1757164253843,-500.0,0.00046573,10]
[383895845,1757164253852,-300.0,0.00046574,30]
[383895846,1757164253861,-300.0,0.00046574,30]
[383895847,1757164253871,-300.0,0.00046574,30]
[383895848,1757164253882,-666.0,0.00046574,30]
[383895849,1757164253891,-300.0,0.00046574,30]
[383895850,1757164253901,-500.0,0.00046575,2]
[383895851,1757164253910,-500.0,0.00046575,2]
[383895852,1757164253919,-403.49587259,0.00046575,120]
[383895853,1757164253929,-400.0,0.00046575,120]
[383895854,1757164253939,-400.0,0.00046575,120]
[383895855,1757164253949,-400.0,0.00046575,120]
[383895856,1757164253959,-400.0,0.00046575,120]
[383895857,1757164253968,-405.91120307,0.00046575,120]
[383895858,1757164253979,-403.02187662,0.00046575,120]
[383895859,1757164253989,-224.91732011,0.00046575,120]
[383895860,1757164253999,-400.0,0.00046575,120]
[383895861,1757164254009,-402.00206482,0.00046575,120]
[383895862,1757164254018,-278.95207059,0.00046575,120]
[383895863,1757164254028,-400.0,0.00046575,120]
[383895864,1757164254036,-400.0,0.00046575,120]
[383895865,1757164254045,-400.0,0.00046575,120]
[383895866,1757164254054,-400.0,0.00046575,120]
[383895867,1757164254062,-400.0,0.00046575,120]
[383895868,1757164254071,-402.21107419,0.00046575,120]
[383895869,1757164254080,-411.76660259,0.00046575,120]
[383895870,1757164254088,-409.93436538,0.00046575,120]
[383895871,1757164254098,-400.0,0.00046575,120]
[383895872,1757164254107,-400.0,0.00046575,120]
[383895873,1757164254116,-400.0,0.00046575,120]
[383895874,1757164254126,-400.0,0.00046575,120]
[383895875,1757164254136,-400.0,0.00046575,120]
[383895876,1757164254145,-400.0,0.00046575,120]
[383895877,1757164254155,-400.0,0.00046575,120]
[383895878,1757164254165,-400.0,0.00046575,120]
[383895879,1757164254175,-400.0,0.00046575,120]
[383895880,1757164254187,-400.0,0.00046575,120]
[383895881,1757164254196,-400.0,0.00046575,120]
[383895882,1757164254205,-404.16647026,0.00046575,120]
[383895883,1757164254215,-400.0,0.00046575,120]
[383895884,1757164254224,-409.94741161,0.00046575,120]
[383895885,1757164254235,-401.33778397,0.00046575,120]
[383895886,1757164254244,-401.69292096,0.00046575,120]
[383895887,1757164254253,-400.0,0.00046575,120]
[383895888,1757164254263,-157.23860949,0.00046575,120]
[383895889,1757164254272,-402.94064489,0.00046575,120]
[383895890,1757164254282,-531.21,0.00046575,120]
[383895891,1757164254291,-400.0,0.00046575,120]
[383895892,1757164254301,-293.68594054,0.00046575,120]
[383895893,1757164254311,-400.0,0.00046575,120]
[383895894,1757164254321,-400.0,0.00046575,120]
[383895895,1757164254331,-400.0,0.00046575,120]
[383895896,1757164254341,-460.0,0.00046575,120]
[383895897,1757164254351,-400.0,0.00046575,60]
[383895898,1757164254360,-401.420783,0.00046575,120]
[383895899,1757164254370,-208.42730606,0.00046575,120]
[383895900,1757164254380,-400.0,0.00046575,120]
[383895901,1757164254390,-400.0,0.00046575,120]
[383895902,1757164254400,-400.0,0.00046575,120]
[383895903,1757164254410,-400.0,0.00046575,120]
[383895904,1757164254419,-400.0,0.00046575,120]
[383895905,1757164254429,-400.0,0.00046575,120]
[383895906,1757164254439,-400.0,0.00046575,120]
[383895907,1757164254448,-400.0,0.00046575,120]
[383895908,1757164254459,-400.0,0.00046575,120]
[383895909,1757164254469,-300.79340221,0.00046575,120]
[383895910,1757164254479,-400.0,0.00046575,120]
[383895911,1757164254489,-400.0,0.00046575,120]
[383895912,1757164254499,-400.0,0.00046575,120]
[383895913,1757164254508,-400.0,0.00046575,120]
[383895914,1757164254517,-400.0,0.00046575,120]
[383895915,1757164254527,-400.0,0.00046575,120]
[383895916,1757164254537,-400.0,0.00046575,120]
[383895917,1757164254546,-400.0,0.00046575,120]
[383895918,1757164254556,-400.0,0.00046575,120]
[383895919,1757164254565,-400.0,0.00046575,120]
[383895920,1757164254576,-400.0,0.00046575,120]
[383895921,1757164254586,-400.0,0.00046575,2]
[383895922,1757164254596,-400.0,0.00046575,120]
[383895923,1757164254605,-400.0,0.00046575,120]
[383895924,1757164254615,-400.0,0.00046575,120]
[383895925,1757164254624,-294.5260188,0.00046575,120]
[383895926,1757164254634,-400.0,0.00046575,120]
[383895927,1757164254643,-491.11,0.00046575,120]
[383895928,1757164254652,-400.0,0.00046575,120]
[383895929,1757164254662,-400.0,0.00046575,120]
[383895930,1757164254671,-400.0,0.00046575,120]
[383895931,1757164254682,-400.0,0.00046575,120]
[383895932,1757164254692,-400.0,0.00046575,120]
[383895933,1757164254875,-400.0,0.00046575,2]
[383895934,1757164254885,-400.0,0.00046575,120]
[383895935,1757164254895,-400.0,0.00046575,120]
[383895936,1757164254905,-400.0,0.00046575,120]
[383895937,1757164254914,-402.90254151,0.00046575,120]
[383895938,1757164254924,-400.0,0.00046575,120]
[383895939,1757164254934,-400.0,0.00046575,120]
[383895940,1757164254943,-400.0,0.00046575,120]
[383895941,1757164254952,-400.0,0.00046575,120]
[383895942,1757164254962,-400.0,0.00046575,120]
[383895943,1757164254971,-400.0,0.00046575,120]
[383895944,1757164254988,-400.0,0.00046575,120]
[383895945,1757164254998,-400.0,0.00046575,120]
[383895946,1757164255008,-400.0,0.00046575,120]
[383895947,1757164255020,-400.0,0.00046575,120]
[383895948,1757164255029,-400.0,0.00046575,120]
[383895949,1757164255039,-319.54992205,0.00046575,120]
[383895950,1757164255048,-400.0,0.00046575,120]
[383895951,1757164255058,-175.54647917,0.00046575,120]
[383895952,1757164255068,-400.0,0.00046575,120]
[383895953,1757164255077,-400.0,0.00046575,120]
[383895954,1757164255087,-577.79,0.00046575,120]
[383895955,1757164255096,-400.0,0.00046575,120]
[383895956,1757164255106,-402.51010741,0.00046575,120]
[383895957,1757164255115,-400.0,0.00046575,120]
[383895958,1757164255125,-400.0,0.00046575,120]
[383895959,1757164255135,-400.0,0.00046575,120]
[383895960,1757164255145,-400.0,0.00046575,120]
[383895961,1757164255154,-400.0,0.00046575,120]
[383895962,1757164255164,-405.12391971,0.00046575,120]
[383895963,1757164255174,-400.0,0.00046575,120]
[383895964,1757164255183,-400.0,0.00046575,120]
[383895965,1757164255193,-400.0,0.00046575,120]
[383895966,1757164255202,-400.0,0.00046575,120]
[383895967,1757164255211,-400.0,0.00046575,120]
[383895968,1757164255220,-400.0,0.00046575,120]
[383895969,1757164255229,-400.0,0.00046575,120]
[383895970,1757164255239,-401.53276471,0.00046575,120]
[383895971,1757164255248,-400.0,0.00046575,120]
[383895972,1757164255258,-400.0,0.00046575,120]
[383895973,1757164255267,-400.0,0.00046575,120]
[383895974,1757164255277,-400.0,0.00046575,120]
[383895975,1757164255287,-400.0,0.00046575,120]
[383895976,1757164255297,-400.0,0.00046575,120]
[383895977,1757164255309,-400.0,0.00046575,120]
[383895978,1757164255319,-400.0,0.00046575,120]
[383895979,1757164255329,-400.0,0.00046575,120]
[383895980,1757164255339,-400.0,0.00046575,120]
[383895981,1757164255350,-400.0,0.00046575,120]
[383895982,1757164255359,-400.0,0.00046575,120]
[383895983,1757164255369,-401.13513942,0.00046575,120]
[383895984,1757164255379,-400.0,0.00046575,120]
[383895985,1757164255388,-400.0,0.00046575,120]
[383895986,1757164255398,-400.0,0.00046575,120]
[383895987,1757164255407,-402.52317558,0.00046575,120]
[383895988,1757164255417,-400.0,0.00046575,120]
[383895989,1757164255426,-400.0,0.00046575,120]
[383895990,1757164255436,-400.0,0.00046575,120]
[383895991,1757164255445,-400.0,0.00046575,120]
[383895992,1757164255454,-400.0,0.00046575,120]
[383895993,1757164255464,-400.0,0.00046575,120]
[383895994,1757164255473,-500.0,0.00046575,120]
[383895995,1757164255482,-500.0,0.00046575,120]
[383895996,1757164255492,-500.0,0.00046575,120]
[383895997,1757164255501,-400.0,0.00046575,120]
[383895998,1757164255511,-400.0,0.00046575,120]
[383895999,1757164255520,-400.0,0.00046575,120]
[383896000,1757164255530,-400.0,0.00046575,120]
[383896001,1757164255540,-509.12251161,0.00046575,120]
[383896002,1757164255550,-400.0,0.00046575,120]
[383896003,1757164255560,-400.0,0.00046575,120]
[383896004,1757164255569,-400.0,0.00046575,120]
[383896005,1757164255579,-400.0,0.00046575,120]
[383896006,1757164255589,-564.69,0.00046575,120]
[383896007,1757164255599,-681.62,0.00046575,120]
[383896008,1757164255608,-400.0,0.00046575,120]
[383896009,1757164255618,-400.0,0.00046575,120]
[383896010,1757164255627,-400.0,0.00046575,120]
[383896011,1757164255637,-400.0,0.00046575,120]
[383896012,1757164255646,-500.0,0.00046575,120]
[383896013,1757164255655,-500.0,0.00046575,120]
[383896014,1757164255665,-361.10404805,0.00046575,120]
[383896015,1757164255675,-400.0,0.00046575,120]
[383896016,1757164255685,-400.0,0.00046575,120]
[383896017,1757164255695,-400.0,0.00046575,120]
[383896018,1757164255704,-400.0,0.00046575,120]
[383896019,1757164255713,-400.0,0.00046575,120]
[383896020,1757164255724,-400.0,0.00046575,120]
[383896021,1757164255733,-400.0,0.00046575,120]
[383896022,1757164255742,-400.0,0.00046575,120]
[383896023,1757164255752,-400.0,0.00046575,120]
[383896024,1757164255762,-400.0,0.00046575,120]
[383896025,1757164255773,-400.0,0.00046575,120]
[383896026,1757164255783,-400.0,0.00046575,120]
[383896027,1757164255793,-400.0,0.00046575,120]
[383896028,1757164255803,-400.0,0.00046575,120]
[383896029,1757164255812,-400.0,0.00046575,120]
[383896030,1757164255822,-400.0,0.00046575,120]
[383896031,1757164255832,-400.0,0.00046575,120]
[383896032,1757164255842,-400.0,0.00046575,120]
[383896033,1757164255851,-400.0,0.00046575,120]
[383896034,1757164255861,-400.0,0.00046575,120]
[383896035,1757164255871,-400.0,0.00046575,7]
[383896036,1757164255880,-400.0,0.00046575,120]
[383896037,1757164255890,-400.0,0.00046575,120]
[383896038,1757164255900,-1000.0,0.00046575,120]
[383896039,1757164255910,-400.0,0.00046575,120]
[383896040,1757164255920,-400.0,0.00046575,120]
[383896041,1757164255930,-400.0,0.00046575,120]
[383896042,1757164255940,-400.0,0.00046575,120]
[383896043,1757164255950,-400.0,0.00046575,120]
[383896044,1757164255960,-400.0,0.00046575,120]
[383896045,1757164255970,-400.0,0.00046575,120]
[383896046,1757164255981,-400.0,0.00046575,120]
[383896047,1757164255991,-400.0,0.00046575,120]
[383896048,1757164256000,-400.0,0.00046575,120]
[383896049,1757164256010,-400.0,0.00046575,120]
[383896050,1757164256019,-400.0,0.00046575,120]
[383896051,1757164256035,-400.0,0.00046575,120]
[383896052,1757164256056,-400.0,0.00046575,120]
[383896053,1757164256076,-400.0,0.00046575,120]
[383896054,1757164256097,-400.0,0.00046575,120]
[383896055,1757164256116,-400.0,0.00046575,120]
[383896056,1757164256134,-400.0,0.00046575,120]
[383896057,1757164256154,-400.0,0.00046575,120]
[383896058,1757164256173,-400.0,0.00046575,120]
[383896059,1757164256194,-400.0,0.00046575,120]
[383896060,1757164256213,-400.0,0.00046575,120]
[383896061,1757164256232,-400.0,0.00046575,120]
[383896062,1757164256248,-400.0,0.00046575,120]
[383896063,1757164256265,-400.0,0.00046575,120]
[383896064,1757164256282,-257.52717466,0.00046575,120]
[383896065,1757164256300,-400.0,0.00046575,120]
[383896066,1757164256329,-400.0,0.00046575,120]
[383896067,1757164256351,-400.0,0.00046575,120]
[383896068,1757164256373,-400.0,0.00046575,120]
[383896069,1757164256392,-400.0,0.00046575,120]
[383896070,1757164256412,-400.0,0.00046575,120]
[383896071,1757164256432,-400.0,0.00046575,120]
[383896072,1757164256450,-400.0,0.00046575,120]
[383896073,1757164256468,-400.0,0.00046575,120]
[383896074,1757164256485,-400.0,0.00046575,120]
[383896075,1757164256503,-506.05,0.00046575,120]
[383896076,1757164256521,-400.0,0.00046575,120]
[383896077,1757164256538,-400.0,0.00046575,120]
[383896078,1757164256555,-400.0,0.00046575,120]
[383896079,1757164256571,-402.43623711,0.00046575,120]
[383896080,1757164256588,-400.0,0.00046575,120]
[383896081,1757164256605,-500.0,0.00046575,120]
[383896082,1757164256620,-500.0,0.00046575,120]
[383896083,1757164256636,-500.0,0.00046575,120]
[383896084,1757164256653,-400.0,0.00046575,120]
[383896085,1757164256669,-500.0,0.00046575,120]
[383896086,1757164256691,-518.53342399,0.00046575,120]
[383896087,1757164256708,-403.30458217,0.00046575,120]
[383896088,1757164256724,-400.0,0.00046575,120]
[383896089,1757164256740,-400.0,0.00046575,120]
[383896090,1757164256756,-400.0,0.00046575,120]
[383896091,1757164256773,-400.0,0.00046575,120]
[383896092,1757164256789,-400.0,0.00046575,120]
[383896093,1757164256805,-400.0,0.00046575,120]
[383896094,1757164256821,-400.0,0.00046575,120]
[383896095,1757164256837,-402.21758471,0.00046575,120]
[383896096,1757164256852,-400.0,0.00046575,120]
[383896097,1757164256869,-400.0,0.00046575,120]
[383896098,1757164256884,-400.0,0.00046575,120]
[383896099,1757164256900,-400.0,0.00046575,120]
[383896100,1757164256916,-400.0,0.00046575,120]
[383896101,1757164256932,-400.0,0.00046575,120]
[383896102,1757164256948,-400.0,0.00046575,120]
[383896103,1757164256964,-400.0,0.00046575,120]
[383896104,1757164256981,-400.0,0.00046575,120]
[383896105,1757164256997,-400.0,0.00046575,120]
[383896106,1757164257012,-400.0,0.00046575,120]
[383896107,1757164257028,-402.92630169,0.00046575,120]
[383896108,1757164257044,-401.91942752,0.00046575,12]
[383896109,1757164257059,-400.0,0.00046575,120]